Cogmind - Beta 15 @@@ ROGUE MODE // 2025.08.09 @ 19:21:13 Player: dbb Result: Destroyed by S-43 Plague with Heavy Machine Gun Performance ------------- Evolutions (7) 3500 Regions Visited (21) 4200 Robots Destroyed (101) 505 Value Destroyed (3156) 3156 Prototype IDs (59) 1180 Alien Tech Used (2) 400 Bonus (919) 919 TOTAL SCORE: 13860 Bonus ------- High Alert Combat Kills 43 Follower Combat Kills 1293 Network Hubs Disabled 400 Aligned with FarCom 300 Met Zhirov 300 Friendly Fire -1417 Cogmind --------- Core Integrity 0/1300 Matter 67/300 Energy 99/100 System Corruption 0% Temperature Cool (0) Movement Core (50) Location -3/Research Parts ------- > --- POWER (2) -------- (None) > --- PROPULSION (4) --- (None) > --- UTILITY (12) ----- Advanced Hacking Suite > --- WEAPON (3) ------- (None) > --- INVENTORY (5) ---- Light Nuclear Core Micro Fission Core Hardlight Generator Advanced Datajack Peak State ------------ > --- POWER ------------ Cooled Ion Engine > --- PROPULSION ------- Improved VTOL Module Improved VTOL Module Xenon Bombardment Thruster Xenon Bombardment Thruster > --- UTILITY ---------- Structural Scanner Improved Hacking Suite Improved Hacking Suite Improved Hacking Suite Improved Hacking Suite Improved Hacking Suite Improved System Shield Improved System Shield > --- WEAPON ----------- Wave Gun Advanced Datajack Ripper > --- INVENTORY -------- Light Fission Core Xenon Bombardment Thruster Improved Light Armor Plating Advanced Variable Charge Gun [Rating: 74] Favorites ----------- Power Cooled Ion Engine Engine Cooled Ion Engine Power Core Improved Fusion Compressor Reactor Fusion Reactor Propulsion Light Treads Treads Light Treads Wheel Wheel Hover Unit Improved Gyrokinetic Inverter Flight Unit Improved VTOL Module Utility Structural Scanner Device Structural Scanner Storage Large Storage Unit Processor Corruption Screen Hackware Improved Hacking Suite Protection Light Armor Plating Weapon Assault Rifle Energy Gun Heavy EM Shotgun Energy Cannon Phase Cannon Ballistic Gun Assault Rifle Ballistic Cannon Advanced Assault Cannon Launcher Mini Grenade Launcher Special Weapon Mining Laser Slashing Weapon Katana Special Melee Weapon Improved Datajack Build | -11 -10 -10 -9 -9 -9 -8 -8 -8 -7 -6 -6 -6 -6 -6 -5 -5 -5 -5 -4 -4 -3 ------- Run | Yrd Mat Min Mat Min Exi Min Mat Sto Fac Fac Ext Cet Arc Hub Fac Upp Upp Zhi Pro Fac Res Slots Evolved 14 | . . . 2 . . . 2 . 2 2 . . . . 2 . . . . 2 2 Power 1 | . . . . . . . . . . 1 . . . . . . . . . . . Propulsion 2 | . . . . . . . 1 . 1 . . . . . . . . . . . . Utility 10 | . . . 2 . . . 1 . 1 1 . . . . 1 . . . . 2 2 Weapon 1 | . . . . . . . . . . . . . . . 1 . . . . . . Parts Attached 139 | 7 3 1 2 7 2 . 10 29 9 2 15 1 9 . 3 1 . 3 3 27 5 Power 15 | 1 . . . 1 . . 1 3 . 1 2 . 1 . . . . 2 . 3 . Engine 8 | 1 . . . 1 . . 1 2 . 1 1 . 1 . . . . . . . . Core 6 | . . . . . . . . 1 . . 1 . . . . . . 1 . 3 . Reactor 1 | . . . . . . . . . . . . . . . . . . 1 . . . Propulsion 41 | 2 . . 1 2 . . 6 7 3 . 5 . 1 . 1 1 . . 1 8 3 Treads 15 | 2 . . . 2 . . 6 5 . . . . . . . . . . . . . Leg . | . . . . . . . . . . . . . . . . . . . . . . Wheel 1 | . . . 1 . . . . . . . . . . . . . . . . . . Hover 3 | . . . . . . . . . . . . . . . . . . . . 1 2 Flight 22 | . . . . . . . . 2 3 . 5 . 1 . 1 1 . . 1 7 1 Utility 51 | 2 3 . . 3 . . 1 10 5 1 5 . 6 . 1 . . 1 1 10 2 Device 23 | 1 1 . . 2 . . 1 8 1 . . . . . . . . . . 8 1 Storage 4 | 1 2 . . . . . . 1 . . . . . . . . . . . . . Processor 1 | . . . . . . . . . . . 1 . . . . . . . . . . Hackware 17 | . . . . . . . . . 4 1 4 . 5 . 1 . . . . 1 1 Protection 6 | . . . . 1 . . . 1 . . . . 1 . . . . 1 1 1 . Artifact . | . . . . . . . . . . . . . . . . . . . . . . Weapon 32 | 2 . 1 1 1 2 . 2 9 1 . 3 1 1 . 1 . . . 1 6 . Energy Gun 9 | . . . . . . . . 6 . . 1 . 1 . . . . . . 1 . Energy Cannon 2 | . . . . . . . . 1 . . . 1 . . . . . . . . . Ballistic Gun 7 | 2 . . . 1 . . . 1 . . . . . . . . . . . 3 . Ballistic Cannon 3 | . . . . . . . 2 . . . . . . . . . . . . 1 . Launcher 2 | . . . 1 . 1 . . . . . . . . . . . . . . . . Special Weapon 2 | . . 1 . . . . . . . . . . . . . . . . 1 . . Impact Weapon . | . . . . . . . . . . . . . . . . . . . . . . Slashing Weapon 4 | . . . . . . . . 1 . . 2 . . . . . . . . 1 . Piercing Weapon . | . . . . . . . . . . . . . . . . . . . . . . Special Melee Weapon 3 | . . . . . 1 . . . 1 . . . . . 1 . . . . . . Unidentified Prototypes 13 | . . . . . . . . 10 . . . . . . . . . 2 1 . . Parts Lost 74 | . 1 . 7 . . . . 2 2 . 10 1 1 . . 2 1 . 11 24 12 Power 7 | . . . 1 . . . . . . . 1 1 . . . . . . 2 2 . Propulsion 24 | . . . 2 . . . . . . . 4 . 1 . . 1 . . 4 7 5 Utility 27 | . 1 . 1 . . . . 1 1 . 4 . . . . . 1 . 3 9 6 Weapon 16 | . . . 3 . . . . 1 1 . 1 . . . . 1 . . 2 6 1 Highest Loss Streak 9 | . 1 . 5 . . . . 1 1 . 3 1 1 . . 2 1 . 9 9 6 To Critical Strikes 1 | . . . . . . . . . . . 1 . . . . . . . . . . Average Backups 11 | 2 10 14 14 14 15 15 14 19 5 3 3 4 4 4 4 3 3 4 4 4 4 Power 1 | . 1 2 2 1 2 2 1 1 1 . . 1 1 1 1 1 1 1 . 1 2 Propulsion 2 | . 2 3 2 3 4 4 1 3 . . . 1 . . . . . . . . . Utility 4 | . 3 6 6 5 5 5 7 10 1 2 1 1 1 1 1 1 1 . . 1 1 Weapon 2 | . 2 3 3 3 3 3 3 2 1 1 . . 1 1 1 1 1 1 1 . . Tool/Special . | . . . . . . . . . . . . . . . . . . . . . . Unused Backups 24 | . 1 . . . 1 . 2 6 7 . 2 . . . . . . . . 3 2 Power 4 | . . . . . . . 1 . 1 . . . . . . . . . . 1 1 Propulsion 4 | . . . . . . . . 4 . . . . . . . . . . . . . Utility 11 | . 1 . . . 1 . 1 . 5 . 2 . . . . . . . . 1 . Weapon 4 | . . . . . . . . 2 1 . . . . . . . . . . 1 . Tool/Special 1 | . . . . . . . . . . . . . . . . . . . . . 1 Average Slot Usage (%) 90 | . 98 100 65 97 100 100 99 99 98 98 92 88 91 93 91 89 88 85 79 58 23 Engine 8 | . 14 14 10 10 11 11 9 8 7 13 11 6 6 6 4 5 5 5 4 . . Treads 15 | . 28 28 20 21 22 22 27 27 . . . . . . . . . . . . . Flight 7 | . . . . . . . . . 29 26 23 26 25 26 21 22 23 23 21 13 2 Device 16 | . 12 14 5 20 22 22 26 27 18 19 11 6 1 5 5 5 5 5 5 13 1 Storage 6 | . 14 14 11 11 11 11 9 9 . . . . . . . . . . . . . Hackware 10 | . . . . . . . . . 25 25 30 33 34 40 41 41 41 35 32 16 8 Protection 4 | . . . . 10 11 11 9 9 . . . . 4 . . . . 2 4 2 . Energy Gun 1 | . . . . . . . . 4 4 . . . 5 6 5 5 5 5 2 . . Ballistic Gun 7 | . 28 22 10 21 17 11 . . . . . . . . . . . . . 5 . Ballistic Cannon 2 | . . . . . . . 17 6 . . . . . . . . . . . 1 . Slashing Weapon 2 | . . . . . . . . 6 7 6 5 6 6 6 5 5 5 5 4 1 . Peak Build Rating 74 | 7 9 9 9 12 13 13 31 33 51 55 55 50 62 62 74 74 67 70 66 74 51 Average Rating 29 | 5 7 9 8 11 12 13 28 28 47 54 46 43 55 60 72 68 66 64 58 49 28 On Entrance 35 | . 7 9 9 4 12 13 13 31 33 50 55 46 43 62 60 74 67 62 66 27 34 Naked Turns . | . . . . . . . . . . . . . . . . . . . . . . Heaviest Build 108 | 13 28 28 28 33 33 32 53 108 23 28 28 25 22 19 18 18 17 19 19 31 5 Greatest Support 68 | 40 40 40 40 40 40 40 66 68 32 32 32 18 20 20 22 22 22 22 22 32 32 Greatest Overweight (x) 3 | . . . 1 . . . . 1 1 . . 1 1 . . 1 . . 2 3 . Average Overweight (x) . | . . . . . . . . . . . . . . . . . . . . . . Largest Inventory Capacity 25 | 8 15 15 15 15 15 15 15 25 25 5 5 5 5 5 5 5 5 5 5 5 5 Average Capacity 12 | 7 12 15 15 15 15 15 15 22 5 5 5 5 5 5 5 5 5 5 5 5 5 Most Carried 25 | 4 14 15 15 15 15 15 15 25 23 4 5 5 5 5 5 5 5 5 5 5 4 Average Carried 11 | 2 10 14 14 14 14 15 14 19 4 3 3 4 4 4 4 4 4 4 4 4 4 Final Capacity 25 | 8 15 15 15 15 15 15 15 25 5 5 5 5 5 5 5 5 5 5 5 5 5 Final Carried 24 | 4 14 15 14 15 15 15 15 24 5 3 5 5 5 5 4 4 5 4 2 4 4 Class Distribution -------------------- 47% | Mutant 14% | Hacker-Sprinter 12% | Infiltrator-Mutant 8% | Wizard-Sprinter 6% | Hacker-Mutant 3% | Commander-Mutant Dominant Class ---------------- Mutant | -10/Materials Mutant | -10/Mines Mutant | -9/Materials Mutant | -9/Mines Mutant | -9/Exiles Mutant | -8/Mines Mutant | -8/Materials Infiltrator-Mutant | -8/Storage Hacker-Sprinter | -7/Factory Hacker-Sprinter | -6/Factory Hacker-Sprinter | -6/Extension Hacker-Sprinter | -6/Cetus Wizard-Sprinter | -6/Archives Wizard-Sprinter | -6/Hub_04(d) Wizard-Sprinter | -5/Factory Wizard-Sprinter | -5/Upper Caves Wizard-Sprinter | -5/Upper Caves Wizard-Sprinter | -5/Zhirov Wizard-Sprinter | -4/Proximity Caves Hacker-Mutant | -4/Factory Hacker-Mutant | -3/Research Resources | -11 -10 -10 -9 -9 -9 -8 -8 -8 -7 -6 -6 -6 -6 -6 -5 -5 -5 -5 -4 -4 -3 ----------- Run | Yrd Mat Min Mat Min Exi Min Mat Sto Fac Fac Ext Cet Arc Hub Fac Upp Upp Zhi Pro Fac Res Matter Collected 3174 | 300 166 262 67 172 . 20 432 876 31 . 394 25 105 . . 70 . . 40 212 2 Remotely . | . . . . . . . . . . . . . . . . . . . . . . Salvage Created 3365 | 85 405 167 120 29 . . 216 597 36 . 1016 80 478 . . . . . . 136 . Parts 189 | 7 25 11 7 2 . . 12 30 7 . 40 2 31 . . . . . . 15 . Haulers Intercepted 5 | . 2 . . . . . . 2 . . 1 . . . . . . . . . . Recyclers Shooed 3 | . 1 . . . . . . . . . 2 . . . . . . . . . . Parts Field Recycled . | . . . . . . . . . . . . . . . . . . . . . . Retrieved Matter . | . . . . . . . . . . . . . . . . . . . . . . Parts Self-Destructed 1 | . . . . . . . . . . . . . . . . . . . 1 . . Prevented . | . . . . . . . . . . . . . . . . . . . . . . Kills | -11 -10 -10 -9 -9 -9 -8 -8 -8 -7 -6 -6 -6 -6 -6 -5 -5 -5 -5 -4 -4 -3 ------- Run | Yrd Mat Min Mat Min Exi Min Mat Sto Fac Fac Ext Cet Arc Hub Fac Upp Upp Zhi Pro Fac Res Combat Hostiles Destroyed 57 | . 8 4 5 1 . . 7 16 . . 8 1 2 . . . . . . 5 . Melee 6 | . . . . . . . . 1 . . 5 . . . . . . . . . . Guns 24 | . 8 4 1 1 . . . 4 . . . . 2 . . . . . . 4 . Cannons 17 | . . . . . . . 5 11 . . . . . . . . . . . 1 . AOE 9 | . . . 4 . . . 2 . . . 3 . . . . . . . . . . Classes Destroyed 15 | 2 6 . . 1 . . 2 1 . . 2 . . . . . . . . 1 . Worker 4 | . 1 1 . . . . 1 . . . 1 . . . . . . . . . . Builder 3 | . . . . . . . . . . . 3 . . . . . . . . . . Tunneler 4 | 2 . . . 1 . . . . . . 1 . . . . . . . . . . Hauler 5 | . 2 . . . . . . 2 . . 1 . . . . . . . . . . Recycler 7 | 1 1 . . . . . . . . . 5 . . . . . . . . . . Operator 13 | . 1 . . . . . 1 . 2 . . . 9 . . . . . . . . Drone 2 | . . . . . . . . 2 . . . . . . . . . . . . . Watcher 7 | . 2 . . . . . 2 1 . . 2 . . . . . . . . . . Swarmer 17 | . 5 . . . . . . 3 . . 5 . . . . . . . . 4 . Grunt 26 | . 3 4 5 . . . 4 8 . . 2 . . . . . . . . . . Sentry 9 | . . . . . . . 1 6 . . . . 2 . . . . . . . . Hunter 2 | . . . . . . . 2 . . . . . . . . . . . . . . Programmer 1 | . . . . . . . . . . . . . . . . . . . . 1 . Behemoth 1 | . . . . . . . . . . . 1 . . . . . . . . . . Cetus Guard 1 | . . . . . . . . . . . . 1 . . . . . . . . . Assembled 1 | . . . . 1 . . . . . . . . . . . . . . . . . Best Kill Streak 10 | 1 4 3 3 1 . . 4 5 1 . 10 1 9 . . . . . . 2 . Combat Bots Only 5 | . 3 3 3 1 . . 4 5 . . 4 1 1 . . . . . . 2 . Max Kills in Single Turn 3 | 1 1 1 1 1 . . 3 1 1 . 3 1 1 . . . . . . 1 . Gunslinging . | . . . . . . . . . . . . . . . . . . . . . . Exploded 2 | . . . 1 . . . 2 . . . 1 . . . . . . . . . . Melee 1 | . . . . . . . . 1 . . 1 . . . . . . . . . . Uniques/NPCs Destroyed 1 | . . . . . . . . . . . . 1 . . . . . . . . . A7 (-6/Cetus) Combat | -11 -10 -10 -9 -9 -9 -8 -8 -8 -7 -6 -6 -6 -6 -6 -5 -5 -5 -5 -4 -4 -3 -------- Run | Yrd Mat Min Mat Min Exi Min Mat Sto Fac Fac Ext Cet Arc Hub Fac Upp Upp Zhi Pro Fac Res Hostile Shots Fired 972 | . 53 11 58 2 . . 77 77 13 . 156 18 21 . 7 15 12 . 110 185 157 Missed 390 | . 24 . 14 . . . 24 16 5 . 79 4 11 . 6 3 8 . 49 76 71 Hits 582 | . 29 11 44 2 . . 53 61 8 . 77 14 10 . 1 12 4 . 61 109 86 Melee 1 | . . . . 1 . . . . . . . . . . . . . . . . . Projectile 581 | . 29 11 44 1 . . 53 61 8 . 77 14 10 . 1 12 4 . 61 109 86 AOE 1 | . . . . . . . . . . . . . . . . . . . . 1 . Critical Strikes 16 | . 1 . . . . . 2 1 . . 1 3 . . . . . . 1 4 3 Damage Taken 10229 | . 312 132 559 27 . . 705 829 128 . 1015 332 227 . 24 179 89 . 955 2878 1838 Core 3856 | . 68 31 182 23 . . 27 116 16 . 302 119 22 . 24 82 43 . 348 1148 1305 Absorbed by Shields 613 | . . . . 10 . . 202 294 . . 27 80 . . . . . . . . . Redirected to Shielding 168 | . . . . . . . . . . . . . . . . . . . 96 72 . Regen/Repaired (Parts) 379 | . 76 . . . . . . . 37 15 101 . . . 150 . . . . . . Core Remaining (%) 59 | 100 . 60 . . . 48 . 74 97 . . . . 47 . . . . 46 . . Volleys Fired 291 | 7 56 14 33 2 . . 30 58 . . 17 11 18 . . 2 . . . 43 . Largest 3 | 2 2 2 1 2 . . 2 2 . . 1 1 1 . . 1 . . . 3 . Hottest 100 | 40 40 100 30 40 . . 80 80 . . 75 85 81 . . 81 . . . 97 . Shots Fired 437 | 14 112 23 33 4 . . 58 95 . . 17 11 18 . . 2 . . . 50 . Gun 235 | 14 112 19 24 4 . . . 9 . . 1 . 18 . . 2 . . . 32 . Cannon 170 | . . . . . . . 58 86 . . . 11 . . . . . . . 15 . Launcher 25 | . . . 9 . . . . . . . 16 . . . . . . . . . . Special 7 | . . 4 . . . . . . . . . . . . . . . . . 3 . Kinetic 352 | 14 112 19 24 4 . . 58 86 . . . . . . . . . . . 35 . Thermal 39 | . . 4 . . . . . . . . 1 11 18 . . 2 . . . 3 . Explosive 25 | . . . 9 . . . . . . . 16 . . . . . . . . . . Electromagnetic 21 | . . . . . . . . 9 . . . . . . . . . . . 12 . Robot Hit Streak 11 | 2 7 8 8 9 . . 7 11 . . . 2 5 . . 6 . . . 11 . Robot Miss Streak 9 | 2 9 1 2 1 . . 4 3 . . . 3 1 . . 1 . . . 4 . Penetration Max . | . . . . . . . . . . . . . . . . . . . . . . Secondary Targets 1 | . . 1 . . . . . . . . . . . . . . . . . . . Max Gunslinging Chain 1 | . . 1 . . . . . . . . . . . . . . . . . . . Shots Hit Robots 287 | 7 56 13 24 3 4 . 34 60 3 . 16 11 33 . . 2 . . . 21 . Core Hits 162 | 4 22 8 9 3 . . 12 29 2 . 46 5 13 . . . . . . 8 1 Critical Kills 2 | . 1 . . . . . . . . . . 1 . . . . . . . . . Critical Parts Destroyed 1 | . 1 . . . . . . . . . . . . . . . . . . . . Critical Strikes 10 | . 2 . . . . . 2 4 . . 1 1 . . . . . . . . . Meltdown 1 | . . . . . . . . . . . . 1 . . . . . . . . . Destroy 2 | . 2 . . . . . . . . . . . . . . . . . . . . Blast 6 | . . . . . . . 2 4 . . . . . . . . . . . . . Sever 1 | . . . . . . . . . . . 1 . . . . . . . . . . Melee Attacks 151 | . . . . . 4 . . 15 36 2 25 7 19 5 14 6 1 . 10 7 . Impact . | . . . . . . . . . . . . . . . . . . . . . . Slashing 145 | . . . . . . . . 15 36 2 24 7 18 5 14 6 1 . 10 7 . Piercing . | . . . . . . . . . . . . . . . . . . . . . . Sneak Attacks 25 | . . . . . 4 . . 2 2 . 2 5 10 . . . . . . . . Combat Hostiles . | . . . . . . . . . . . . . . . . . . . . . . Follow-up Attacks . | . . . . . . . . . . . . . . . . . . . . . . Damage Inflicted 9509 | 101 718 162 621 61 . . 1263 1792 210 . 1939 512 1570 . . 68 . . . 479 13 Guns 2057 | 101 702 158 193 38 . . . 159 . . . . 358 . . 25 . . . 323 . Cannons 2646 | . . . . . . . 834 1460 . . . 216 . . . . . . . 136 . Explosions 2174 | . . . 428 . . . 429 3 . . 1314 . . . . . . . . . . Melee 2551 | . . . . . . . . 165 210 . 625 296 1212 . . 43 . . . . . Ramming 61 | . 16 4 . 23 . . . 5 . . . . . . . . . . . . 13 Kinetic 3843 | 101 702 158 193 38 . . 834 1460 . . . . . . . . . . . 357 . Thermal 1051 | . . . . . . . 429 3 . . . 216 358 . . 25 . . . 20 . Explosive 1742 | . . . 428 . . . . . . . 1314 . . . . . . . . . . Electromagnetic 261 | . . . . . . . . 159 . . . . . . . . . . . 102 . Impact . | . . . . . . . . . . . . . . . . . . . . . . Slashing 2551 | . . . . . . . . 165 210 . 625 296 1212 . . 43 . . . . . Piercing . | . . . . . . . . . . . . . . . . . . . . . . Highest Corruption 26 | . . . . . . . . . . . . . . . . . . . . 26 . Average Corruption 4 | . . . . . . . . . . . . . . . . . . . . 4 . Corruption Purged 3 | . . . . . . . . . . . . . . . . . . . . 3 . Corruption Blocked 1 | . . . . . . . . . . . 1 . . . . . . . . . . Effects 14 | . . . . . . . . . . . . . . . . . . . . 14 . Message Errors 7 | . . . . . . . . . . . . . . . . . . . . 7 . Matter Fused 4 | . . . . . . . . . . . . . . . . . . . . 4 . Heat Flow Errors 3 | . . . . . . . . . . . . . . . . . . . . 3 . Overload Shots . | . . . . . . . . . . . . . . . . . . . . . . Overflow Damage 912 | . . . 26 . . . 297 14 60 . 100 71 336 . . . . . . 8 . Projectiles 82 | . . . . . . . 60 14 . . . . . . . . . . . 8 . Explosions 265 | . . . 26 . . . 237 . . . 2 . . . . . . . . . . Melee 565 | . . . . . . . . . 60 . 98 71 336 . . . . . . . . Knockbacks 21 | . . . . 1 . . 9 8 . . . . . . . . . . . 2 1 Impact 2 | . . . . 1 . . . . . . . . . . . . . . . . 1 Kinetic 17 | . . . . . . . 9 6 . . . . . . . . . . . 2 . Secondary 2 | . . . . . . . . 2 . . . . . . . . . . . . . Self-Inflicted Damage 347 | . . . 40 . . . 163 37 . . . . . . . . . . . 101 6 Shots 5 | . . . 1 . . . 2 1 . . . . . . . . . . . 1 . Rammed 12 | . 2 1 . 4 . . . 2 . . . . . . . . . . . . 3 Targets Rammed 14 | . 2 2 . 5 . . . 2 . . . . . . . . . . . . 3 Kicked . | . . . . . . . . . . . . . . . . . . . . . . Crushed 2 | . . 1 . 1 . . . . . . . . . . . . . . . . . Highest Temperature 320 | . 2 40 2 . . . 200 294 . . 56 320 252 . . 100 . . . 226 310 Average Temperature 90 | . 2 15 1 . . . 61 93 . . 25 174 112 . . 55 . . . 96 154 Received Heat Transfer 1687 | . 51 78 267 . . . 235 304 12 . 156 . 45 . 9 9 12 . 9 63 437 Effects 1 | . . . . . . . . . . . . . 1 . . . . . . . . Energy Bleed 1 | . . . . . . . . . . . . . 1 . . . . . . . . Siege Activations . | . . . . . . . . . . . . . . . . . . . . . . Martial Activations . | . . . . . . . . . . . . . . . . . . . . . . Shielding Activations . | . . . . . . . . . . . . . . . . . . . . . . Robots Disrupted . | . . . . . . . . . . . . . . . . . . . . . . Combat Hostiles . | . . . . . . . . . . . . . . . . . . . . . . Robots Corrupted 1 | . . . . . . . . 1 . . . . . . . . . . . . . Combat Hostiles . | . . . . . . . . . . . . . . . . . . . . . . Parts Fried . | . . . . . . . . . . . . . . . . . . . . . . Impact Corruptions . | . . . . . . . . . . . . . . . . . . . . . . Robots Melted 1 | . . . . . . . . . . . . 1 . . . . . . . . . Combat Hostiles 1 | . . . . . . . . . . . . 1 . . . . . . . . . Parts Melted 3 | . . . . . . . 1 . . . . 2 . . . . . . . . . Heat Transferred 1188 | . . . . . . . 250 50 . . . 259 555 . . 37 . . . 37 . Parts Sabotaged . | . . . . . . . . . . . . . . . . . . . . . . Parts Stolen . | . . . . . . . . . . . . . . . . . . . . . . Parts Stripped . | . . . . . . . . . . . . . . . . . . . . . . Power Chain Reactions 1 | . . . . . . . . 1 . . . . . . . . . . . . . Alert | -11 -10 -10 -9 -9 -9 -8 -8 -8 -7 -6 -6 -6 -6 -6 -5 -5 -5 -5 -4 -4 -3 ------- Run | Yrd Mat Min Mat Min Exi Min Mat Sto Fac Fac Ext Cet Arc Hub Fac Upp Upp Zhi Pro Fac Res Maximum Alert Level 3 | . . . . . . . 1 2 . . 1 1 . . . . . . . 3 . Low Security (%) 84 | 100 100 100 100 100 . 100 94 81 100 100 90 14 100 100 100 . . . . 5 100 Level 1 7 | . . . . . . . 5 15 . . 9 85 . . . . . . . 14 . Level 2 4 | . . . . . . . . 2 . . . . . . . . . . . 44 . Level 3 3 | . . . . . . . . . . . . . . . . . . . . 35 . Level 4 . | . . . . . . . . . . . . . . . . . . . . . . Level 5 . | . . . . . . . . . . . . . . . . . . . . . . High Security . | . . . . . . . . . . . . . . . . . . . . . . Max Security . | . . . . . . . . . . . . . . . . . . . . . . Peak Influence 959 | 5 74 123 93 16 . . 211 454 29 30 331 294 136 112 78 . . . . 959 85 Initial 959 | . . . 35 16 . . . 76 23 . 11 178 97 33 . . . . . 959 85 Average 101 | . 10 40 22 . . . 77 100 4 19 65 249 106 11 18 . . . . 578 38 Influence Increases 6261 | 15 254 299 311 5 . . 352 1197 123 44 1012 146 129 117 124 15 45 . 345 1545 183 Destroy 0b10 Robot/C 2060 | . 160 240 120 . . . 140 640 . . 500 80 80 . . . . . . 100 . Destroy 0b10 Robot/NC 230 | 15 35 5 . 5 . . 20 25 10 . 70 . 45 . . . . . . . . Destroy Leader 384 | . 38 20 20 . . . 44 188 . . 54 . . . . . . . . 20 . Allied During Kill 312 | . . 33 2 . . . . 204 . . 55 16 2 . . . . . . . . Successful Hack 337 | . 6 . 12 . . . . 12 36 42 46 10 . 12 12 . . . . 131 18 Select Force Hacks 130 | . . . . . . . 30 . . . . . . 100 . . . . . . . Disable Machine 285 | . 15 . 30 . . . 60 90 . . . 30 . . . . . . . 60 . Destroy Structure 318 | . . 1 37 . . . 58 38 32 2 47 10 2 5 22 . . . . 64 . Advance Influence 900 | . . . . . . . . . . . . . . . . . . . . 900 . Partial Spotted 45 | . . . . . . . . . . . 15 . . . 15 . . . . 15 . Lose Combat Pursuer 1260 | . . . 90 . . . . . 45 . 225 . . . 75 15 45 . 345 255 165 Influence Decreases 6221 | 15 251 211 360 47 . . 172 1326 173 21 717 221 277 212 47 93 45 . 250 1476 307 Entered New Map 728 | . . 3 56 26 . . . 104 28 1 13 141 147 63 1 30 . . . 36 79 Time Decay 3089 | 15 251 188 210 21 . . 172 652 140 20 374 70 100 37 46 55 45 . 140 440 113 Search Patrol Dispatched 450 | . . . . . . . . . . . . . . . . . . . . 450 . Lost Part 650 | . . . 50 . . . . 20 5 . 82 10 10 . . 8 . . 110 240 115 Lost Ally 518 | . . 20 40 . . . . 250 . . 178 . 20 . . . . . . 10 . Purge Threat 786 | . . . 4 . . . . 300 . . 70 . . 112 . . . . . 300 . Squads Dispatched 33 | . 1 . 2 . . 1 2 6 8 1 2 1 . 2 2 . . . 1 1 3 Investigation 21 | . . . 1 . . 1 2 5 5 1 1 1 . 2 1 . . . . . 1 Extermination 4 | . . . . . . . . . 1 . . . . . 1 . . . . 1 1 Reinforcement 7 | . 1 . 1 . . . . 1 2 . 1 . . . . . . . . . 1 Assault 1 | . . . . . . . . . . . . . . . . . . . 1 . . Garrison . | . . . . . . . . . . . . . . . . . . . . . . Intercept . | . . . . . . . . . . . . . . . . . . . . . . Searches Triggered 3 | . . . . . . . . . . . . . . . . . . . . 3 . Construction Impeded 3 | . . . . . . . . 1 . . 1 . . . . . . . . . 1 Haulers Reinforced . | . . . . . . . . . . . . . . . . . . . . . . Active Scanning Responses . | . . . . . . . . . . . . . . . . . . . . . . Cargo Convoy Interrupts . | . . . . . . . . . . . . . . . . . . . . . . Stealth | -11 -10 -10 -9 -9 -9 -8 -8 -8 -7 -6 -6 -6 -6 -6 -5 -5 -5 -5 -4 -4 -3 --------- Run | Yrd Mat Min Mat Min Exi Min Mat Sto Fac Fac Ext Cet Arc Hub Fac Upp Upp Zhi Pro Fac Res Distress Signals 11 | . . 1 1 . . . . 3 . . 2 1 . . . . . . 2 1 . Communications Jammed . | . . . . . . . . . . . . . . . . . . . . . . Distress Signals . | . . . . . . . . . . . . . . . . . . . . . . Times Spotted 263 | . 17 10 19 6 . . 16 29 8 . 37 5 12 1 6 3 6 . 37 29 22 Peak Tracking Total 10 | . 4 4 5 3 . . 4 5 3 . 8 5 2 4 6 2 4 . 10 8 10 Tactical Retreats 47 | . . . 4 1 . . . 2 3 . 9 . . . 4 1 2 . 8 7 6 Traps | -11 -10 -10 -9 -9 -9 -8 -8 -8 -7 -6 -6 -6 -6 -6 -5 -5 -5 -5 -4 -4 -3 ------- Run | Yrd Mat Min Mat Min Exi Min Mat Sto Fac Fac Ext Cet Arc Hub Fac Upp Upp Zhi Pro Fac Res Traps Triggered 9 | . 1 . . . . . 1 1 . . 3 . . . . . . . . 2 1 Indirectly . | . . . . . . . . . . . . . . . . . . . . . . Trap Hack Attempts . | . . . . . . . . . . . . . . . . . . . . . . Triggered . | . . . . . . . . . . . . . . . . . . . . . . Disarmed 10 | . . . . . . . . . . . 4 . . . 6 . . . . . . Reprogrammed . | . . . . . . . . . . . . . . . . . . . . . . Reused . | . . . . . . . . . . . . . . . . . . . . . . Traps Extracted . | . . . . . . . . . . . . . . . . . . . . . . Installed . | . . . . . . . . . . . . . . . . . . . . . . Triggered . | . . . . . . . . . . . . . . . . . . . . . . Machines | -11 -10 -10 -9 -9 -9 -8 -8 -8 -7 -6 -6 -6 -6 -6 -5 -5 -5 -5 -4 -4 -3 ---------- Run | Yrd Mat Min Mat Min Exi Min Mat Sto Fac Fac Ext Cet Arc Hub Fac Upp Upp Zhi Pro Fac Res Machines Disabled 22 | . 1 . 2 . . . 4 6 . . 2 2 . . . 1 . . . 4 . Max in Single Turn 4 | . 1 . 1 . . . 4 1 . . 1 . . . . 1 . . . 2 . Garrison Access 3 | . . . . . . . . . 2 . . . . . 1 . . . . . . Network Hub 2 | . . . . . . . . . . . . . . 2 . . . . . . . Machines Repaired . | . . . . . . . . . . . . . . . . . . . . . . Machines Dismantled . | . . . . . . . . . . . . . . . . . . . . . . Machines Sabotaged 2 | . . . . . . . . . . . . . . 2 . . . . . . . Overloaded Fab Kills . | . . . . . . . . . . . . . . . . . . . . . . Hacking | -11 -10 -10 -9 -9 -9 -8 -8 -8 -7 -6 -6 -6 -6 -6 -5 -5 -5 -5 -4 -4 -3 --------- Run | Yrd Mat Min Mat Min Exi Min Mat Sto Fac Fac Ext Cet Arc Hub Fac Upp Upp Zhi Pro Fac Res Machines Accessed 91 | . 7 . 3 . 5 1 3 13 11 2 18 3 1 3 4 . . 9 . 7 1 Terminals 58 | . 5 . 3 . . 1 2 11 5 1 17 3 . 3 2 . . . . 5 . Fabricators 1 | . . . . . . . . . . . . . . . . . . . . . 1 Repair Stations 7 | . 1 . . . . . . . 2 1 1 . . . 1 . . . . 1 . Recycling Units 3 | . 1 . . . . . . 1 1 . . . . . . . . . . . . Scanalyzers 3 | . . . . . . . 1 . 1 . . . . . . . . . . 1 . Garrison Access 4 | . . . . . . . . 1 2 . . . . . 1 . . . . . . Total Hacks 389 | . 14 . 13 . 50 4 5 36 39 6 47 19 25 17 20 . . 48 . 44 2 Successful 254 | . 4 . 5 . 50 . 1 9 23 3 27 8 25 11 16 . . 48 . 22 2 Failed 135 | . 10 . 8 . . 4 4 27 16 3 20 11 . 6 4 . . . . 22 . Catastrophic 23 | . 1 . 1 . . 2 2 9 . 1 2 . . . 2 . . . . 3 . Database Lockouts . | . . . . . . . . . . . . . . . . . . . . . . Manual 90 | . 8 . 9 . 1 4 5 12 9 1 9 1 . 10 4 . . . . 17 . Terminals 216 | . 10 . 13 . . 4 4 32 22 3 45 19 . 17 12 . . . . 35 . Fabricators 2 | . . . . . . . . . . . . . . . . . . . . . 2 Repair Stations 23 | . 2 . . . . . . . 5 3 2 . . . 7 . . . . 4 . Recycling Units 4 | . 2 . . . . . . 1 1 . . . . . . . . . . . . Scanalyzers 13 | . . . . . . . 1 . 7 . . . . . . . . . . 5 . Garrison Access 8 | . . . . . . . . 3 4 . . . . . 1 . . . . . . Terminal Hacks 210 | . . . 5 . 50 . . 8 7 1 24 8 25 9 9 . . 48 . 16 . Record 117 | . . . . . 49 . . . . . . 7 25 . . . . 36 . . . Part Schematic 14 | . . . . . . . . . 1 . 6 . . . 1 . . 4 . 2 . Robot Schematic 1 | . . . . . . . . 1 . . . . . . . . . . . . . Robot Analysis 9 | . . . . . . . . . 1 1 1 . . 2 . . . 4 . . . Prototype ID Bank 5 | . . . 1 . . . . . . . . . . . . . . 4 . . . Open Door 16 | . . . . . . . . 3 . . 12 1 . . . . . . . . . Level Access Points 2 | . . . . . . . . . 1 . . . . 1 . . . . . . . Branch Access Points 4 | . . . 1 . . . . . . . 1 . . . 1 . . . . 1 . Emergency Access Points 1 | . . . . . . . . . 1 . . . . . . . . . . . . Terminal Index 3 | . . . . . . . . . 1 . . . . 1 . . . . . 1 . Alert Level 1 | . . . 1 . . . . . . . . . . . . . . . . . . Unreport Threat 8 | . . . 1 . . . . 2 . . 1 . . 2 . . . . . 2 . Locate Traps 2 | . . . 1 . . . . . . . . . . 1 . . . . . . . Disarm Traps 3 | . . . . . . . . . . . 1 . . . 2 . . . . . . Reinforcement Status 1 | . . . . . . . . . 1 . . . . . . . . . . . . Recall Investigation 3 | . . . . . . . . . . . . . . . 1 . . . . 2 . Recall Extermination 5 | . . . . . . . . . . . . . . . 1 . . . . 4 . Recall Reinforcements 1 | . . . . . . . . . 1 . . . . . . . . . . . . Recall Assault 2 | . . . . . . . . . . . . . . . 1 . . . . 1 . Registered Components 1 | . . . . . . . . 1 . . . . . . . . . . . . . Zone Layout 10 | . . . . . . . . 1 . . 2 . . 2 2 . . . . 3 . Proto ID Catalog 1 | . . . . . 1 . . . . . . . . . . . . . . . . Fabricator Hacks 2 | . . . . . . . . . . . . . . . . . . . . . 2 Load Schematic 1 | . . . . . . . . . . . . . . . . . . . . . 1 Build 1 | . . . . . . . . . . . . . . . . . . . . . 1 Repair Station Hacks 18 | . 2 . . . . . . . 4 2 2 . . . 6 . . . . 2 . Scan Component 9 | . 1 . . . . . . . 2 1 1 . . . 3 . . . . 1 . Repair 9 | . 1 . . . . . . . 2 1 1 . . . 3 . . . . 1 . Recycling Unit Hacks 3 | . 1 . . . . . . 1 1 . . . . . . . . . . . . Report Inventory 3 | . 1 . . . . . . 1 1 . . . . . . . . . . . . Scanalyzer 10 | . . . . . . . . . 7 . . . . . . . . . . 3 . Insert Component 5 | . . . . . . . . . 3 . . . . . . . . . . 2 . Analyze 5 | . . . . . . . . . 4 . . . . . . . . . . 1 . Garrison Access Hacks 3 | . . . . . . . . . 2 . . . . . 1 . . . . . . Seal Access 3 | . . . . . . . . . 2 . . . . . 1 . . . . . . Unauthorized Hacks 8 | . 1 . . . . . 1 . 2 . 1 . . 2 . . . . . 1 . Terminals 7 | . 1 . . . . . . . 2 . 1 . . 2 . . . . . 1 . Assimilate 4 | . . . . . . . . . 2 . 1 . . . . . . . . 1 . Operators 1 | . 1 . . . . . . . . . . . . . . . . . . . . Sabotage 2 | . . . . . . . . . . . . . . 2 . . . . . . . Fabricators . | . . . . . . . . . . . . . . . . . . . . . . Repair Stations . | . . . . . . . . . . . . . . . . . . . . . . Recycling Units . | . . . . . . . . . . . . . . . . . . . . . . Scanalyzers 1 | . . . . . . . 1 . . . . . . . . . . . . . . Extract 1 | . . . . . . . 1 . . . . . . . . . . . . . . Garrison Access . | . . . . . . . . . . . . . . . . . . . . . . Data Cores Recovered 1 | . . . . . . . . 1 . . . . . . . . . . . . . Used . | . . . . . . . . . . . . . . . . . . . . . . Hacking Detections 50 | . 5 . 2 . . 1 2 12 7 2 5 3 . 2 2 . . . . 6 1 Full Trace Events 20 | . . . 1 . . 1 1 7 5 1 1 1 . . 1 . . . . . 1 Feedback Events . | . . . . . . . . . . . . . . . . . . . . . . Feedback Blocked 1 | . . . . . . . . . . . . . . . 1 . . . . . . Robot Schematics Acquired 1 | . . . . . . . . 1 . . . . . . . . . . . . . Robots Built . | . . . . . . . . . . . . . . . . . . . . . . Authchips . | . . . . . . . . . . . . . . . . . . . . . . Time . | . . . . . . . . . . . . . . . . . . . . . . Total Robot Build Rating . | . . . . . . . . . . . . . . . . . . . . . . Part Schematics Acquired 22 | . . . . . . . 4 . 4 . 6 . . . 1 . . 4 . 3 . Parts Built 1 | . . . . . . . . . . . . . . . . . . . . . 1 Authchips . | . . . . . . . . . . . . . . . . . . . . . . Time 35 | . . . . . . . . . . . . . . . . . . . . . 35 Total Part Build Rating 6 | . . . . . . . . . . . . . . . . . . . . . 6 Parts Repaired 9 | . 1 . . . . . . . 2 1 1 . . . 3 . . . . 1 . Time 256 | . 26 . . . . . . . 43 8 51 . . . 85 . . . . 43 . Parts Recycled . | . . . . . . . . . . . . . . . . . . . . . . Recycled Matter . | . . . . . . . . . . . . . . . . . . . . . . Retrieved Matter . | . . . . . . . . . . . . . . . . . . . . . . Retrieved Components . | . . . . . . . . . . . . . . . . . . . . . . Parts Scanalyzed 4 | . . . . . . . . . 3 . . . . . . . . . . 1 . Part Schematics Acquired 4 | . . . . . . . . . 3 . . . . . . . . . . 1 . Parts Damaged 1 | . . . . . . . . . . . . . . . . . . . . 1 . Bothacking | -11 -10 -10 -9 -9 -9 -8 -8 -8 -7 -6 -6 -6 -6 -6 -5 -5 -5 -5 -4 -4 -3 ------------ Run | Yrd Mat Min Mat Min Exi Min Mat Sto Fac Fac Ext Cet Arc Hub Fac Upp Upp Zhi Pro Fac Res Used RIF Installer . | . . . . . . . . . . . . . . . . . . . . . . Robots Hacked 5 | . . . . . 4 . . . . . . . 1 . . . . . . . . Non-combat 4 | . . . . . 3 . . . . . . . 1 . . . . . . . . Combat 1 | . . . . . 1 . . . . . . . . . . . . . . . . Robot Hacks Applied 5 | . . . . . 4 . . . . . . . 1 . . . . . . . . parse_system 4 | . . . . . 4 . . . . . . . . . . . . . . . . no_distress 1 | . . . . . . . . . . . . . 1 . . . . . . . . Relay Couplers Released . | . . . . . . . . . . . . . . . . . . . . . . Fabnet Peak Effective % . | . . . . . . . . . . . . . . . . . . . . . . Robots Rewired . | . . . . . . . . . . . . . . . . . . . . . . Allies Hacked . | . . . . . . . . . . . . . . . . . . . . . . Hacks Repelled . | . . . . . . . . . . . . . . . . . . . . . . Allies | -11 -10 -10 -9 -9 -9 -8 -8 -8 -7 -6 -6 -6 -6 -6 -5 -5 -5 -5 -4 -4 -3 -------- Run | Yrd Mat Min Mat Min Exi Min Mat Sto Fac Fac Ext Cet Arc Hub Fac Upp Upp Zhi Pro Fac Res Total Allies 29 | . . 3 . . . . . 10 . . 15 . . . . . . . . 1 . Largest Group 10 | . . 3 2 . . . . 10 . . 7 2 1 . . . . . . 1 . Highest-Rated Group 283 | . . 40 32 . . . . 173 . . 283 198 39 . . . . . . 10 . Highest-Rated Ally 159 | . . 16 16 . . . . 29 . . 159 159 39 . . . . . . 10 . Total Orders 3 | . . . . . . . . 3 . . . . . . . . . . . . . EXPLORE 3 | . . . . . . . . 3 . . . . . . . . . . . . . Ally Attacks 311 | . . 34 12 . . . . 121 . . 107 27 10 . . . . . . . . Total Damage 4794 | . . 385 139 . . . . 1527 . . 2081 460 202 . . . . . . . . Kills 50 | . . 8 1 . . . . 18 . . 18 3 2 . . . . . . . . Allies Corrupted 4 | . . . . . . . . 3 . . 1 . . . . . . . . . . Allies Melted 1 | . . . . . . . . . . . 1 . . . . . . . . . . Intel | -11 -10 -10 -9 -9 -9 -8 -8 -8 -7 -6 -6 -6 -6 -6 -5 -5 -5 -5 -4 -4 -3 ------- Run | Yrd Mat Min Mat Min Exi Min Mat Sto Fac Fac Ext Cet Arc Hub Fac Upp Upp Zhi Pro Fac Res Active Infowar (turns) 11839 | 74 1315 691 377 526 878 478 786 2606 694 44 1132 159 38 172 228 306 165 71 327 761 11 Sensors 1684 | . 616 691 377 . . . . . . . . . . . . . . . . . . Terrain 430 | . . . . . . . . . . . . . . . . . . . . 430 . Structural 8941 | . . . . 526 878 478 786 2606 694 44 1132 159 38 172 228 306 165 71 327 331 . Seismic 773 | 74 699 . . . . . . . . . . . . . . . . . . . . Cloaking 58 | . . . . . . . 6 . 37 . 4 . . . . . . . . . 11 ECM 2155 | . . . . . . . . 2142 13 . . . . . . . . . . . . Robot Analysis Total 9 | . . . . . . . . . 1 1 1 . . 2 . . . 4 . . . Derelict Logs Recovered 5 | . . 1 . 2 . . . . . . . . . . . . 2 . . . . Drone Launches 20 | . . . . . . . . 20 . . . . . . . . . . . . . Drone Recoveries 7 | . . . . . . . . 7 . . . . . . . . . . . . . Exploration | -11 -10 -10 -9 -9 -9 -8 -8 -8 -7 -6 -6 -6 -6 -6 -5 -5 -5 -5 -4 -4 -3 ------------- Run | Yrd Mat Min Mat Min Exi Min Mat Sto Fac Fac Ext Cet Arc Hub Fac Upp Upp Zhi Pro Fac Res Turns Passed 13301 | 164 1474 691 790 532 878 478 786 2606 707 53 1132 159 205 174 228 306 165 71 327 1099 276 Spaces Moved 12035 | 83 665 230 404 306 543 295 279 988 1101 139 1689 192 261 166 339 797 577 226 845 1485 425 Core 125 | 3 . . . . . . . . . . . . . . . . . . . 71 51 Treads 3756 | 80 665 230 370 306 543 295 279 988 . . . . . . . . . . . . . Legs . | . . . . . . . . . . . . . . . . . . . . . . Wheels 34 | . . . 34 . . . . . . . . . . . . . . . . . . Hover 366 | . . . . . . . . . . . . . . . . . . . . 43 323 Flight 7754 | . . . . . . . . . 1101 139 1689 192 261 166 339 797 577 226 845 1371 51 Fastest Speed 26 | 50 160 160 95 160 160 160 160 160 26 26 26 26 26 27 27 28 28 28 28 26 40 Average Speed 76 | 156 160 160 155 160 160 160 160 214 27 26 27 26 27 27 27 29 28 28 29 41 52 Slowest Speed 275 | 160 160 160 240 160 160 160 160 240 96 26 32 101 101 27 28 103 28 28 195 275 70 Overloaded Moves . | . . . . . . . . . . . . . . . . . . . . . . Propulsion Burnouts . | . . . . . . . . . . . . . . . . . . . . . . Robots Hopped 21 | . . . . . . . . . 3 . 12 . . 1 . 1 . . 1 2 1 Potential Cave-ins 2 | . . . . . . . . . . . . . . . 2 . . . . . . Cave-ins Triggered 2 | . . . . . . . . . . . . . . . . . . . . 2 . Teleports 1 | . . . . . . . . . . . . . . . . . . . 1 . . Exploration Rate (%) 55 | 5 76 52 32 62 92 93 32 97 35 5 84 79 96 16 13 78 83 62 84 31 12 Regions Visited 21 Branch Regions 13 Pre-discovered Areas 4 | . . . . . 1 . . . . . . . . . . . . 3 . . . Known Exits Taken 9 | . . . 1 . . 1 1 1 1 . 1 . . 1 1 . . . 1 . . Unknown Exits Taken 12 | 1 1 1 . 1 1 . . . . 1 . 1 1 . . 1 1 1 . 1 . Scrap Searched 9 | . . 1 . . . 1 . . . . . . . . . 2 2 . 3 . . Spaces Dug 138 | . . . . . . . 6 14 32 2 3 . . 5 14 2 1 . 9 50 . Terrain Destroyed 330 | . . 1 44 . . . 61 36 32 2 65 4 . 5 14 2 1 . 9 54 . Melee 82 | . . . . . . . . 8 32 2 3 . . 5 14 2 1 . 9 6 . Projectile 62 | . . 1 . . . . 19 23 . . . 4 . . . . . . . 15 . AOE 186 | . . . 44 . . . 42 5 . . 62 . . . . . . . . 33 . Terrain Rammed . | . . . . . . . . . . . . . . . . . . . . . . Walls Destroyed . | . . . . . . . . . . . . . . . . . . . . . . Machines Disabled . | . . . . . . . . . . . . . . . . . . . . . . Actions | -11 -10 -10 -9 -9 -9 -8 -8 -8 -7 -6 -6 -6 -6 -6 -5 -5 -5 -5 -4 -4 -3 --------- Run | Yrd Mat Min Mat Min Exi Min Mat Sto Fac Fac Ext Cet Arc Hub Fac Upp Upp Zhi Pro Fac Res Total 15434 | 100 963 520 531 340 550 301 563 1358 1452 152 2291 277 351 286 449 856 578 233 906 1903 474 Wait 2590 | . 222 273 92 14 . 7 225 208 282 8 496 65 34 114 89 49 . . 46 324 42 Move 11974 | 82 664 229 403 305 542 294 278 987 1096 138 1664 191 260 163 338 794 576 225 842 1480 423 Hop 19 | . . . . . . . . . 1 . 12 . . 1 . 1 . . 1 2 1 Pick Up 96 | 4 13 1 1 6 1 . 9 23 5 1 9 1 3 1 1 2 1 1 1 12 . Fast Attach 66 | 7 . . . 2 . . 1 8 2 . 10 . 5 . 3 . . 2 1 20 5 Attach 52 | . 1 . 2 5 . . 2 3 11 3 4 1 2 1 2 1 . 2 4 8 . Detach 6 | . . . . . . . . 1 . . . . 1 . . . . 1 1 2 . Swap 47 | . 2 1 . 1 2 . 8 24 . . 3 . 4 . 1 . . . . 1 . Drop 84 | . 3 . . . 1 . 10 29 19 . 7 1 5 1 1 1 . 2 . 4 . Fire 291 | 7 56 14 33 2 . . 30 58 . . 17 11 18 . . 2 . . . 43 . Melee 151 | . . . . . 4 . . 15 36 2 25 7 19 5 14 6 1 . 10 7 . Ram 3 | . . . . . . . . . . . . . . . . . . . . . 3 Kick . | . . . . . . . . . . . . . . . . . . . . . . Crush 11 | . 2 2 . 5 . . . 2 . . . . . . . . . . . . . Escape Stasis 44 | . . . . . . . . . . . 44 . . . . . . . . . . Rewire . | . . . . . . . . . . . . . . . . . . . . . . Trap . | . . . . . . . . . . . . . . . . . . . . . . Miscellaneous . | . . . . . . . . . . . . . . . . . . . . . . Route ------- -11/Scrapyard -10/Materials (discovered 3 exits: *Mat x2 / [*Min]) -10/Mines -9/Materials (discovered 3 exits: *Mat / *Min x2) -9/Mines (discovered 3 exits: *Mat x2 / *Exi) -9/Exiles -8/Mines (discovered 2 exits: *Mat x2) -8/Materials (discovered 2 exits: Fac / *Sto) -8/Storage -7/Factory (discovered 5 exits: *Fac x4 / [*Low]) -6/Factory -6/Extension (discovered 2 exits: *Fac / *Cet) -6/Cetus -6/Archives (discovered 3 exits: *Fac / *Hub x2) -6/Hub_04(d) (discovered 4 exits: *Fac x4) -5/Factory (discovered 2 exits: *Upp x2) -5/Upper Caves -5/Upper Caves (discovered 2 exits: *Fac / *Zhi) -5/Zhirov -4/Proximity Caves -4/Factory (discovered 3 exits: *Res / Upp x2) -3/Research History --------- Turn | Location | Event 38 | -11/Scrapyard | Discovered new exit (range 15) 165 | -11/Scrapyard | Entered Materials 318 | -10/Materials | Build established: Mutant 485 | -10/Materials | Discovered new exit (range 15) 821 | -10/Materials | Discovered new exit (range 12) 924 | -10/Materials | Repaired Lgt. Treads 1168 | -10/Materials | Discovered new exit (range 10) 1639 | -10/Materials | Entered Mines 1678 | -10/Mines | Assisted by bots powering up and referring to "LRC-V3" 1834 | -10/Mines | Excavation squad dispatched 1834 | -10/Mines | A large section of the Mines collapsed 2084 | -10/Mines | Excavation squad dispatched 2315 | -10/Mines | Discovered new exit (range 7) 2316 | -10/Mines | Met a Derelict testing a Signal Generator 2330 | -10/Mines | Entered Materials 2330 | -9/Materials | Accompanied by 2 allies 2330 | -9/Materials | Evolved 2 slots: Utility x2 2942 | -9/Materials | Discovered new exit (range 16) 2953 | -9/Materials | Identified exit to Mines 3118 | -9/Materials | Lost 5 parts (1p2n2w) 3120 | -9/Materials | Entered Mines 3133 | -9/Mines | Joined a pair of Derelicts in attacking an 0b10 outpost 3352 | -9/Mines | Assembled infested the area 3385 | -9/Mines | Core integrity fell below 50% 3389 | -9/Mines | Identified exit to Materials 3581 | -9/Mines | Discovered exit to Materials (range 3) 3644 | -9/Mines | Deemed a non-threat by the Exiles lab entrance 3644 | -9/Mines | Discovered new exit (range 5) 3652 | -9/Mines | Entered Exiles 3689 | -9/Exiles | Met 8R-AWN 3718 | -9/Exiles | Met EX-HEX 3795 | -9/Exiles | Met EX-DEC 3834 | -9/Exiles | Visited The Gauntlet 4032 | -9/Exiles | Learned location of Zion (-7) 4088 | -9/Exiles | Met EX-BIN 4105 | -9/Exiles | Aligned with FarCom system 4107 | -9/Exiles | Given EX-Vault access code 4156 | -9/Exiles | Opened EX-Vault 4197 | -9/Exiles | Found Cloak of Protection 4231 | -9/Exiles | Warned to stay clear of 0b10 Research branches 4513 | -9/Exiles | Discovered new exit (range 11) 4530 | -9/Exiles | Left Exiles lab with Cloak of Protection 4530 | -9/Exiles | Entered Mines 4597 | -8/Mines | Discovered exit to Materials (range 12) 4883 | -8/Mines | Discovered exit to Materials (range 12) 5008 | -8/Mines | Entered Materials 5008 | -8/Materials | Evolved 2 slots: Propulsion x1, Utility x1 5009 | -8/Materials | Identified exit to Factory 5009 | -8/Materials | Identified exit to Storage 5794 | -8/Materials | Entered Storage 5924 | -8/Storage | Lost 7 allies 6333 | -8/Storage | Assisted by bots powering up and referring to "LRC-V3" 6598 | -8/Storage | Lost 4 allies 6635 | -8/Storage | Build established: Commander-Mutant 7136 | -8/Storage | Build established: Infiltrator-Mutant 7297 | -8/Storage | Discovered exit to Factory (range 16) 8400 | -8/Storage | Entered Factory 8400 | -7/Factory | Evolved 2 slots: Propulsion x1, Utility x1 8430 | -7/Factory | Discovered new exit (range 12) 8464 | -7/Factory | Repaired Hvy. EM Shotgun 8479 | -7/Factory | Repaired Structural Scanner 8660 | -7/Factory | Identified exit to Factory 8706 | -7/Factory | Build established: Hacker-Sprinter 9107 | -7/Factory | Entered another Factory area 9107 | -6/Factory | Evolved 2 slots: Power x1, Utility x1 9121 | -6/Factory | Repaired Structural Scanner 9154 | -6/Factory | Discovered new exit (range 10) 9160 | -6/Factory | Entered Extension 9237 | -6/Extension | Rescued a captive Derelict 9243 | -6/Extension | Rescued a captive Derelict 9247 | -6/Extension | Rescued a captive Derelict 9250 | -6/Extension | Rescued a captive Derelict 9262 | -6/Extension | Lost 3 parts (1n2u) 9264 | -6/Extension | Identified exit to Cetus 9285 | -6/Extension | Rescued a captive Derelict 9303 | -6/Extension | Rescued a captive Derelict 9737 | -6/Extension | Spotted B-75 Beast 9760 | -6/Extension | Disrupted transfer network 9769 | -6/Extension | Destroyed B-75 Beast 9775 | -6/Extension | Spotted B-75 Beast 9808 | -6/Extension | Lost 3 parts (1p1n1u) 10031 | -6/Extension | Rescued a captive Derelict 10031 | -6/Extension | Rescued a captive Derelict 10032 | -6/Extension | Rescued a captive Derelict 10042 | -6/Extension | Rescued A7 10042 | -6/Extension | Rescued a captive Derelict 10044 | -6/Extension | Rescued a captive Derelict 10087 | -6/Extension | Rescued a captive Derelict 10088 | -6/Extension | Rescued a captive Derelict 10145 | -6/Extension | Repaired Cld. Ion Engine 10230 | -6/Extension | Rescued a captive Derelict 10247 | -6/Extension | Discovered new exit (range 10) 10292 | -6/Extension | Entered Cetus 10292 | -6/Cetus | Accompanied by 2 allies (A7) 10297 | -6/Cetus | Acquired a Cetus Manufacturing Module code from A7 10298 | -6/Cetus | Spotted Cetus Guard 10304 | -6/Cetus | Spotted Cetus Guard 10305 | -6/Cetus | Spotted Cetus Guard 10311 | -6/Cetus | Allies destroyed Cetus Guard 10313 | -6/Cetus | Spotted Cetus Guard 10315 | -6/Cetus | Allies destroyed Cetus Guard 10323 | -6/Cetus | Destroyed Cetus Guard 10324 | -6/Cetus | Allies destroyed Cetus Guard 10337 | -6/Cetus | Started Cetus Manufacturing Module 10347 | -6/Cetus | Cetus Manufacturing Module disabled 10358 | -6/Cetus | Murdered A7 10361 | -6/Cetus | Extracted ID and sensor layout for unrecognized location from A7's data core 10422 | -6/Cetus | Discovered new exit (range 16) 10451 | -6/Cetus | Entered Archives 10451 | -6/Archives | Accompanied by 1 ally 10508 | -6/Archives | Core integrity fell below 50% 10564 | -6/Archives | Unable to access archive contents 10585 | -6/Archives | Discovered new exit (range 13) 10620 | -6/Archives | Discovered new exit (range 16) 10623 | -6/Archives | Unable to access archive contents 10625 | -6/Archives | Unable to access archive contents 10630 | -6/Archives | Unable to access archive contents 10641 | -6/Archives | Discovered new exit (range 16) 10656 | -6/Archives | Entered Hub_04(d) 10779 | -6/Hub_04(d) | Identified exit to Factory 10780 | -6/Hub_04(d) | Network Hub disabled 10781 | -6/Hub_04(d) | Network Hub disabled 10830 | -6/Hub_04(d) | Entered Factory 10830 | -5/Factory | Evolved 2 slots: Utility x1, Weapon x1 10877 | -5/Factory | Repaired Imp. VTOL Module 10904 | -5/Factory | Repaired Cld. Ion Engine 10935 | -5/Factory | Repaired Imp. VTOL Module 10985 | -5/Factory | Discovered new exit (range 10) 11006 | -5/Factory | Identified exit to Upper Caves 11058 | -5/Factory | Entered Upper Caves 11289 | -5/Upper Caves | Attacked by a delusional Derelict stockpiling parts 11298 | -5/Upper Caves | Discovered new exit (range 11) 11364 | -5/Upper Caves | Entered another Upper Caves area 11370 | -5/Upper Caves | Attracted the attention of an 0b10 checkpoint 11407 | -5/Upper Caves | Spotted B-75 Beast 11440 | -5/Upper Caves | Found DCF Scrap (12 items) 11451 | -5/Upper Caves | Identified exit to Factory 11473 | -5/Upper Caves | Build established: Wizard-Sprinter 11506 | -5/Upper Caves | Discovered new exit (range 15) 11528 | -5/Upper Caves | Learned Factory security intel 11529 | -5/Upper Caves | Entered Zhirov 11529 | -5/Zhirov | Discovered new exit (range 3) 11535 | -5/Zhirov | Met Zhirov 11541 | -5/Zhirov | Learned location of Quarantine (-2) 11541 | -5/Zhirov | Learned location of Testing (-3) 11541 | -5/Zhirov | Learned location of Command (-1) 11545 | -5/Zhirov | Zhirov requested help retrieving the SGEMP Prototype 11551 | -5/Zhirov | Found Alien Artifact 11551 | -5/Zhirov | Identified Integrated Reactor 11551 | -5/Zhirov | Installed Integrated Reactor, increased core energy generation (+10) 11556 | -5/Zhirov | Found Alien Artifact 11600 | -5/Zhirov | Entered Proximity Caves 11602 | -4/Proximity Caves | Attracted the attention of an 0b10 checkpoint 11682 | -4/Proximity Caves | Attracted the attention of an 0b10 outpost 11710 | -4/Proximity Caves | Spotter reported a threat 11710 | -4/Proximity Caves | Spotter reported a threat 11763 | -4/Proximity Caves | Spotter reported a threat 11815 | -4/Proximity Caves | Spotter reported a threat 11816 | -4/Proximity Caves | Spotted B-86 Titan 11868 | -4/Proximity Caves | Spotter reported a threat 11888 | -4/Proximity Caves | Identified Transdimensional Reconstructor 11888 | -4/Proximity Caves | Warped through subspace 11896 | -4/Proximity Caves | Spotter reported a threat 11917 | -4/Proximity Caves | Core integrity fell below 50% 11922 | -4/Proximity Caves | Discovered exit to Factory (range 14) 11927 | -4/Proximity Caves | Entered Factory 11927 | -4/Factory | Evolved 2 slots: Utility x2 11942 | -4/Factory | Lost 9 parts (2p4n2u1w) 12133 | -4/Factory | Spotted B-86 Titan 12189 | -4/Factory | Build established: Hacker-Mutant 12223 | -4/Factory | Spotted B-86 Titan 12240 | -4/Factory | Identified exit to Upper Caves 12260 | -4/Factory | Core integrity fell below 50% 12289 | -4/Factory | Lost 9 parts (2n5u2w) 12427 | -4/Factory | Search patrols dispatched 12456 | -4/Factory | Lost 5 parts (1p2n2w) 12677 | -4/Factory | Search patrols dispatched 12881 | -4/Factory | Repaired Broken Adv. Datajack 12927 | -4/Factory | Search patrols dispatched 12968 | -4/Factory | Crushed by falling debris 12968 | -4/Factory | Core integrity fell below 20% 12968 | -4/Factory | System corruption reached 10% 12969 | -4/Factory | Crushed by falling debris 13016 | -4/Factory | Discovered new exit (range 9) 13026 | -4/Factory | Entered Research 13026 | -3/Research | Evolved 2 slots: Utility x2 13038 | -3/Research | Spotted B-86 Titan 13045 | -3/Research | Lost 9 parts (1p3n3u2w) 13092 | -3/Research | Lost 5 parts (1n3u1w) 13155 | -3/Research | Fabricated Adv. Hacking Suite (x1) 13256 | -3/Research | Core integrity fell below 50% 13268 | -3/Research | Lost 6 parts (3n3u) 13281 | -3/Research | Core integrity fell below 20% 13302 | -3/Research | Destroyed by S-43 Plague with Heavy Machine Gun Last Messages --------------- K-01 Serf destroyed. Imp. Linear Gravjet destroyed. Critical hit (Burn: +50). Imp. Hacking Suite destroyed. Slammed into U-05 Engineer. U-05 Engineer knocked back. Hacking Suite destroyed. Slammed into U-05 Engineer. ALERT: Construction progress impeded, dispatching reinforcements to local area. ALERT: Potential suspicious activity detected, Programmers report to Research Zone 9U. Slug penetrates Wall. Slug penetrates S-43 Plague. Imp. Gyrokinetic Inverter destroyed. C-30 ARC bursts open, deploying its payload. H-77 Assassin unfolds itself. Slug penetrates Wall. Slug penetrates Repair Station. Slug penetrates Wall. Map ----- +----------------------------------------------------+ | ?????????????????????????????????????????????????? | | ?????????????????????????????????????????????????? | | ?????????????????????????????????????????????????? | | ?????????????????????????????????????????????????? | | ?????????????????????????????????????????????????? | | ?????????????????????????????????????????????????? | | ?????????????????????????????????????????????????? | | ?????????????????????????????????????????????????? | | ?????????????????????????????????????????????????? | | ?????????????????????????????????????????????????? | | ?????????????????????????????????????????????????? | | #####????????????????????????????????????????????? | | #????????????????????????????????????????????? | | #????????????????????????????????????????????? | | #????????????????????????? ??????????????????? | | " #???????????????????????? ??????????????????? | | #???????????????????????? ??????????????????? | | " #????????????????###+#### ?????????????????? | | #????????????????# ????????????????? | | #????????????????# #???????????????? | | #????????????????# #???????????????? | | #/###????????????????# """ #???????????????? | | # #??????????????????# """ #???????????????? | | # #??????????????????# R" #???????????????? | | # ################+### """ #???????????????? | | # s @ "" #???????????????? | | + s #???????????????? | | # s s s #???????????????? | | # #???????????????? | | ############### ######+########???????????????? | | ??????????????# A # #???????????????????? | | ??????????????# # #???????????????????? | | ????????????? / # """ #???????????????????? | | ???????????? # # """ #???????????????????? | | ??????????? # # """ #???????????????????? | | ?????????? ?# # #???????????????????? | | ????????? ??# # #???????????????????? | | ???????? ???# # #???????????????????? | | ????????##????# ##?########???????????????????? | | ??????????????# #?????????????????????????????? | | ??????????????# #?????????????????????????????? | | ??????????????# #?????????????????????????????? | | ??????????????? ??????????????????????????????? | | ?????????????????????????????????????????????????? | | ?????????????????????????????????????????????????? | | ?????????????????????????????????????????????????? | | ?????????????????????????????????????????????????? | | ?????????????????????????????????????????????????? | | ?????????????????????????????????????????????????? | | ?????????????????????????????????????????????????? | +----------------------------------------------------+ Best States ------------- Heat Dissipation 46 Energy Generation 45 Energy Capacity 460 Matter Stores 300 Matter Capacity 300 Sight Range 16 Robot Scan Range 14 Terrain Scan Range 20 Terrain Scan Density 10 ECM Strength 1 Cloak Strength 5 Additional Mass Support 16 Base Temperature (-) 200 Corruption Block 4 Armor Coverage 225 Propulsion Shielding 66 Utility Shielding 66 Phase Shifting 5 Evasion (%) 72 Recoil Reduction 3 Offensive Hacking 60 Defensive Hacking 24 Item Schematics ----------------- Hvy. Mace | -8/Materials | Extracted Titanium Leg | -8/Materials | Extracted Imp. Terrain Scanner | -8/Materials | Extracted Hcp. Battery | -8/Materials | Extracted Adv. Melee Analysis Suite | -7/Factory | Hacked Hacking Suite | -7/Factory | Scanalyzed Cld. Ion Engine | -7/Factory | Scanalyzed Mni. Grenade Launcher | -7/Factory | Scanalyzed Hyp. Mass Driver | -6/Extension | Hacked Adv. System Restoration Module | -6/Extension | Hacked Lgt. Fission Core | -6/Extension | Hacked Adv. Hacking Suite | -6/Extension | Hacked Adv. System Shield | -6/Extension | Hacked Cld. VTOL Module | -6/Extension | Hacked Adv. Point Defense System | -5/Factory | Hacked Assault Drone Bay | -5/Zhirov | Free Exp. Heat Sink | -5/Zhirov | Free Exp. Optical Array | -5/Zhirov | Free Imp. Arc Thrower | -5/Zhirov | Free Adv. Datajack | -4/Factory | Scanalyzed Impulse Thruster Array | -4/Factory | Hacked Imp. Cloaking Device | -4/Factory | Hacked Robot Schematics ------------------ R-06 Scavenger | -8/Storage | Hacked Fabricated ------------ Adv. Hacking Suite | x1 | -3/Research Repaired ---------- Lgt. Treads | 45% | -10/Materials Hvy. EM Shotgun | 65% | -7/Factory Structural Scanner | 55% | -7/Factory Structural Scanner | 25% | -6/Factory Cld. Ion Engine | 8% | -6/Extension Imp. VTOL Module | 8% | -5/Factory Cld. Ion Engine | 26% | -5/Factory Imp. VTOL Module | 54% | -5/Factory Adv. Datajack | 99% | -4/Factory | Broken Alien Tech Used ----------------- Integrated Reactor Transdimensional Reconstructor Achievements -------------- Collateral Damage I Survived The Infestation Challenges ------------ None Game ------ Seed FrostTerrorMembrane Manual? 0 Play Time 04:57:14 Cumulative 43.5 hours Start 2025.06.17 @ 16:44:55 End 2025.08.09 @ 19:21:13 Sessions 7 Manual Loads 0 Difficulty Rogue Special Mode None Game No. 9 Rogue 6 Adventurer 3 Explorer 0 Win Type - Total 2 Types 1/0/0/1/0/0/0/0/0/0 Lore% 16 Gallery% 28 Achievement% 38 Wizard Run 0 Options --------- Layout 1 ASCII 0 Keyboard 0 Movement Mouse Keybinds 0 Fullscreen 2 Font 32/SmallcapsGlow Map View 50x40 Zoom Use 0% Tactical HUD 0 Map Filters NONE Filters NONE Steam 0 RUN: 524fb622-5c70-40cd-9ba0-8810c4d5bfca